bitfinex/quotes_SOLUSD_20230903
["timestamp","ask_amount","ask_price","bid_price","bid_amount"]
[1693723503416,98.1738,19.608,19.594,55.0]
[1693723503599,98.1738,19.608,19.595,4.94461036]
[1693723532135,98.1738,19.608,19.592,24.94461036]
[1693723532333,98.1738,19.608,19.593,55.0]
[1693723532538,98.1738,19.608,19.594,4.94461036]
[1693723533440,55.0,19.607,19.594,4.94461036]
[1693723533626,55.0,19.607,19.593,4.94461036]
[1693723533933,55.0,19.607,19.592,4.94461036]
[1693723546352,37.33,19.6,19.592,4.94461036]
[1693723547437,37.33,19.6,19.584,4.94461036]
[1693723547650,37.33,19.6,19.585,55.0]
[1693723547953,37.33,19.6,19.586,4.94461036]
[1693723548153,37.33,19.6,19.587,55.0]
[1693723548457,37.33,19.6,19.588,4.94461036]
[1693723551542,37.33,19.6,19.582,15.3323124]
[1693723551543,37.33,19.6,19.583,24.94461036]
[1693723551855,37.33,19.6,19.584,55.0]
[1693723552040,37.33,19.6,19.585,4.94461036]
[1693723566063,45.289,19.6,19.585,4.94461036]
[1693723566359,257.12947875,19.599,19.578,4.94461036]
[1693723566561,37.33,19.59,19.573,15.01378254]
[1693723566865,37.33,19.59,19.574,4.94461036]
[1693723567648,92.2152,19.589,19.576,4.94461036]
[1693723567851,92.2152,19.589,19.578,4.94461036]
[1693723568068,37.33,19.59,19.578,4.94461036]
[1693723568864,95.1205,19.589,19.578,4.94461036]
[1693723584885,95.1205,19.589,19.579,55.0]
[1693723585085,95.1205,19.589,19.58,4.94461036]
[1693723588088,95.1205,19.589,19.576,4.94461036]
[1693723588273,95.1205,19.589,19.576,59.94461036]
[1693723603696,95.1205,19.589,19.576,4.94461036]
[1693723603885,95.1205,19.589,19.574,4.94461036]
[1693723605300,95.1205,19.589,19.571,24.94461036]
[1693723614531,103.0835,19.589,19.571,24.94461036]
[1693723614718,95.1205,19.589,19.571,24.94461036]
[1693723664868,95.1205,19.589,19.572,55.0]
[1693723665172,95.1205,19.589,19.573,24.94461036]
[1693723665373,95.1205,19.589,19.574,55.0]
[1693723665573,95.1205,19.589,19.575,4.94461036]
[1693723665771,95.1205,19.589,19.576,55.0]
[1693723666072,95.1205,19.589,19.577,4.94461036]
[1693723666381,95.1205,19.589,19.576,55.0]
[1693723666382,95.1205,19.589,19.579,4.94461036]
[1693723680387,95.1205,19.589,19.58,55.0]
[1693723680591,95.1205,19.589,19.581,4.94461036]
[1693723711345,95.1205,19.589,19.58,55.0]
[1693723711523,15.03985692,19.595,19.58,55.0]
[1693723711724,110.0469,19.594,19.581,4.94461036]
[1693723711926,110.0469,19.594,19.58,55.0]
[1693723713827,110.0469,19.594,19.581,4.94461036]
[1693723719346,110.0469,19.594,19.58,55.0]
[1693723720054,110.0469,19.594,19.581,4.94461036]
[1693723723343,110.0469,19.594,19.58,55.0]
[1693723723841,110.0469,19.594,19.581,4.94461036]
[1693723725055,110.0469,19.594,19.58,55.0]
[1693723749567,110.0469,19.594,19.581,4.94461036]
[1693723760080,37.33,19.59,19.581,4.94461036]
[1693723761073,37.33,19.59,19.58,55.0]
[1693723763474,37.33,19.59,19.576,41.51991827]
[1693723763778,37.33,19.59,19.577,4.94461036]
[1693723763977,45.293,19.59,19.574,4.94461036]
[1693723764173,45.293,19.59,19.572,4.94461036]
[1693723771285,37.33,19.59,19.572,4.94461036]
[1693723784894,37.33,19.59,19.573,55.0]
[1693723785097,37.33,19.59,19.574,4.94461036]
[1693723785284,37.33,19.59,19.575,55.0]
[1693723785584,37.33,19.59,19.576,4.94461036]
[1693723785784,37.33,19.59,19.577,55.0]
[1693723785986,37.33,19.59,19.578,4.94461036]
[1693723786291,37.33,19.59,19.58,4.94461036]
[1693723786496,37.33,19.59,19.578,4.94461036]
[1693723786799,37.33,19.59,19.58,4.94461036]
[1693723787293,37.33,19.59,19.578,4.94461036]
[1693723787486,37.33,19.59,19.579,55.0]
[1693723787689,37.33,19.59,19.58,4.94461036]
[1693723788393,37.33,19.59,19.579,55.0]
[1693723788698,37.33,19.59,19.58,4.94461036]
[1693723807012,55.0,19.589,19.572,4.94461036]
[1693723807603,92.388,19.588,19.572,4.94461036]
[1693723808019,100.352,19.588,19.572,4.94461036]
[1693723808221,92.388,19.588,19.572,4.94461036]
[1693723809514,92.388,19.588,19.573,55.0]
[1693723809718,92.388,19.588,19.574,4.94461036]
[1693723810015,92.388,19.588,19.576,4.94461036]
[1693723811802,100.352,19.588,19.576,4.94461036]
[1693723812003,92.388,19.588,19.576,4.94461036]
[1693723821414,92.388,19.588,19.562,66.71629078]
[1693723821415,75.0,19.587,19.571,4.94461036]
[1693723821621,75.0,19.587,19.565,4.94461036]
[1693723821622,37.33,19.58,19.565,4.94461036]
[1693723822018,96.4055,19.579,19.565,4.94461036]
[1693723839936,96.4055,19.579,19.566,55.0]
[1693723840133,96.4055,19.579,19.567,4.94461036]
[1693723840335,96.4055,19.579,19.568,55.0]
[1693723840536,96.4055,19.579,19.569,4.94461036]
[1693723845931,96.4055,19.579,19.565,4.94461036]
[1693723846840,96.4055,19.579,19.566,55.0]
[1693723847043,96.4055,19.579,19.567,4.94461036]
[1693723861669,55.0,19.578,19.561,24.94461036]
[1693723862167,96.4055,19.579,19.561,24.94461036]
[1693723862868,96.4055,19.579,19.563,4.94461036]
[1693723863063,96.4055,19.579,19.565,4.94461036]
[1693723863270,96.4055,19.579,19.563,4.94461036]
[1693723863456,96.4055,19.579,19.565,4.94461036]
[1693723864862,96.4055,19.579,19.566,55.0]
[1693723865064,96.4055,19.579,19.567,4.94461036]
[1693723867060,96.4055,19.579,19.562,4.94461036]
[1693723867264,96.4055,19.579,19.563,55.0]
[1693723867471,96.4055,19.579,19.564,4.94461036]
[1693723867777,96.4055,19.579,19.566,4.94461036]
[1693723868079,96.4055,19.579,19.564,4.94461036]
[1693723868281,96.4055,19.579,19.565,55.0]
[1693723868581,96.4055,19.579,19.566,4.94461036]
[1693723869567,104.3725,19.579,19.566,4.94461036]
[1693723869767,62.968,19.578,19.562,4.94461036]
[1693723870584,55.0,19.578,19.562,4.94461036]
[1693723870976,62.968,19.578,19.562,4.94461036]
[1693723871668,62.968,19.578,19.56,4.94461036]
[1693723872069,62.968,19.578,19.557,4.94461036]
[1693723881989,62.968,19.578,19.56,37.33]
[1693723882281,62.968,19.578,19.561,24.94461036]
[1693723882494,37.33,19.57,19.556,4.94461036]
[1693723882678,37.33,19.57,19.555,4.94461036]
[1693723883190,37.33,19.57,19.554,4.94461036]
[1693723883383,97.8601,19.569,19.554,4.94461036]
[1693723894303,97.8601,19.569,19.56,37.33]
[1693723898794,97.8601,19.569,19.561,4.94461036]
[1693723902999,7.968,19.577,19.561,4.94461036]
[1693723903311,172.0366,19.576,19.56,37.33]
[1693723903509,172.0366,19.576,19.561,4.94461036]
[1693723907017,172.0366,19.576,19.56,37.33]
[1693723907413,172.0366,19.576,19.561,4.94461036]
[1693723908312,180.0056,19.576,19.555,4.94461036]
[1693723908611,180.0056,19.576,19.554,4.94461036]
[1693723915532,37.33,19.57,19.554,4.94461036]
[1693723916220,97.7216,19.569,19.554,4.94461036]
[1693723916609,37.33,19.57,19.554,4.94461036]
[1693723917151,97.8729,19.569,19.554,4.94461036]
[1693723920715,97.8729,19.569,19.554,45.70943653]
[1693723927732,97.8729,19.569,19.56,37.33]
[1693723927928,97.8729,19.569,19.561,4.94461036]
[1693723929936,97.8729,19.569,19.56,37.33]
[1693723930928,97.8729,19.569,19.561,4.94461036]
[1693723931839,97.8729,19.569,19.555,4.94461036]
[1693723940152,97.8729,19.569,19.557,4.94461036]
[1693723940342,97.8729,19.569,19.559,4.94461036]
[1693723940535,97.8729,19.569,19.561,4.94461036]
[1693723940736,97.8729,19.569,19.562,55.0]
[1693723941141,75.0,19.576,19.562,4.94461036]
[1693723941342,97.1774,19.575,19.562,4.94461036]
[1693723941549,20.0,19.574,19.562,4.94461036]
[1693723942062,20.0,19.574,19.561,55.0]
[1693723949548,20.0,19.574,19.56,55.0]
[1693723949861,20.0,19.574,19.561,4.94461036]
[1693723955048,20.0,19.574,19.56,55.0]
[1693723955249,20.0,19.574,19.561,4.94461036]
[1693723961866,20.0,19.574,19.562,55.0]
[1693723962265,20.0,19.574,19.561,55.0]
[1693723962569,20.0,19.574,19.562,4.94461036]
[1693723962954,20.0,19.574,19.561,55.0]
[1693723963965,20.0,19.574,19.562,4.94461036]
[1693723964166,20.0,19.574,19.561,55.0]
[1693723964359,20.0,19.574,19.562,4.94461036]
[1693723964555,65.56952979,19.578,19.562,4.94461036]
[1693723964756,94.8668,19.577,19.563,55.0]
[1693723964960,94.8668,19.577,19.564,4.94461036]
[1693723965177,94.8668,19.577,19.565,55.0]
[1693723965362,94.8668,19.577,19.566,4.94461036]
[1693723965561,94.8668,19.577,19.567,55.0]
[1693723965761,94.8668,19.577,19.568,4.94461036]
[1693723966562,94.8668,19.577,19.567,55.0]
[1693723967181,37.33,19.58,19.568,4.94461036]
[1693723967474,90.7042,19.579,19.568,4.94461036]
[1693723967862,90.7042,19.579,19.567,55.0]
[1693723978469,90.7042,19.579,19.568,4.94461036]
[1693723979770,90.7042,19.579,19.567,55.0]
[1693723981991,90.7042,19.579,19.568,4.94461036]
[1693723982788,90.7042,19.579,19.567,55.0]
[1693723987187,90.7042,19.579,19.568,4.94461036]
[1693723987484,90.7042,19.579,19.569,55.0]
[1693723989395,90.7042,19.579,19.565,4.94461036]
[1693723990791,90.7042,19.579,19.567,4.94461036]
[1693723991085,90.7042,19.579,19.568,55.0]
[1693723994086,90.7042,19.579,19.564,15.42309657]
[1693723994288,90.7042,19.579,19.566,4.94461036]
[1693723994488,90.7042,19.579,19.567,55.0]
[1693723994789,90.7042,19.579,19.568,4.94461036]
[1693723997599,90.7042,19.579,19.567,55.0]
[1693724002190,90.7042,19.579,19.568,4.94461036]
[1693724006113,90.7042,19.579,19.567,55.0]
[1693724006596,90.7042,19.579,19.568,4.94461036]
[1693724007818,90.7042,19.579,19.567,55.0]
[1693724010801,90.7042,19.579,19.566,4.94461036]
[1693724010996,90.7042,19.579,19.565,4.94461036]
[1693724012203,90.7042,19.579,19.562,61.18609406]
[1693724012204,90.7042,19.579,19.563,4.94461036]
[1693724012504,90.7042,19.579,19.563,24.94461036]
[1693724013394,55.0,19.578,19.563,24.94461036]
[1693724013595,62.968,19.578,19.563,4.94461036]
[1693724013795,62.968,19.578,19.562,4.94461036]
[1693724013990,62.968,19.578,19.56,40.93660531]
[1693724014300,62.968,19.578,19.561,24.94461036]
[1693724014602,62.968,19.578,19.561,20.0]
[1693724014795,62.968,19.578,19.56,4.94461036]
[1693724016405,62.968,19.578,19.559,4.94461036]
[1693724016706,62.968,19.578,19.559,24.94461036]
[1693724018301,62.968,19.578,19.559,4.94461036]
[1693724018504,62.968,19.578,19.553,4.94461036]
[1693724024402,55.0,19.578,19.553,4.94461036]
[1693724040029,55.0,19.578,19.554,55.0]
[1693724040231,55.0,19.578,19.555,24.94461036]
[1693724040430,55.0,19.578,19.556,55.0]
[1693724040625,55.0,19.578,19.557,24.94461036]
[1693724040832,55.0,19.578,19.56,37.33]
[1693724041131,55.0,19.578,19.561,4.94461036]
[1693724041338,55.0,19.578,19.561,79.94461036]
[1693724050728,71.18563362,19.578,19.561,79.94461036]
[1693724051027,16.18563362,19.577,19.561,79.94461036]
[1693724051229,55.0,19.576,19.561,79.94461036]
[1693724058442,37.33,19.57,19.561,4.94461036]
[1693724058633,37.33,19.57,19.553,24.94461036]
[1693724059141,97.3407,19.569,19.553,24.94461036]
[1693724059766,97.3407,19.569,19.555,4.94461036]
[1693724060047,97.3407,19.569,19.557,4.94461036]
[1693724060354,97.3407,19.569,19.558,55.0]
[1693724060544,97.3407,19.569,19.559,4.94461036]
[1693724060939,97.3407,19.569,19.558,4.94461036]
[1693724077377,97.3407,19.569,19.559,55.0]
[1693724077577,97.3407,19.569,19.56,4.94461036]
[1693724099502,97.3407,19.569,19.559,55.0]
[1693724100598,97.3407,19.569,19.56,4.94461036]
[1693724106295,97.3407,19.569,19.556,4.94461036]
[1693724106602,97.3407,19.569,19.557,55.0]
[1693724106800,97.3407,19.569,19.558,4.94461036]
[1693724108391,97.3407,19.569,19.554,4.94461036]
[1693724108705,97.3407,19.569,19.556,4.94461036]
[1693724109203,97.3407,19.569,19.555,4.94461036]
[1693724157940,55.0,19.568,19.554,4.94461036]
[1693724181555,97.3407,19.569,19.554,4.94461036]
[1693724181750,97.3407,19.569,19.56,37.33]
[1693724182058,97.3407,19.569,19.561,4.94461036]
[1693724182360,15.5076687,19.576,19.561,4.94461036]
[1693724182562,110.6748,19.575,19.561,4.94461036]
[1693724182959,55.0,19.574,19.561,4.94461036]
[1693724183255,20.0,19.573,19.561,4.94461036]
[1693724184070,20.0,19.573,19.56,37.33]
[1693724184248,20.0,19.573,19.561,4.94461036]
[1693724186165,20.0,19.573,19.561,4.8300638]
[1693724195774,20.0,19.573,19.557,4.8300638]
[1693724195967,20.0,19.573,19.558,55.0]
[1693724196176,20.0,19.573,19.559,4.8300638]
[1693724196666,20.0,19.574,19.56,55.0]
[1693724196868,20.0,19.574,19.561,4.8300638]
[1693724199369,20.0,19.574,19.562,55.0]
[1693724199565,90.6748,19.575,19.563,4.8300638]
[1693724199969,90.6748,19.575,19.563,24.8300638]
[1693724219886,90.6748,19.575,19.564,55.0]
[1693724220187,90.6748,19.575,19.565,4.8300638]
[1693724220387,90.6748,19.575,19.566,55.0]
[1693724220588,90.6748,19.575,19.567,4.8300638]
[1693724228885,90.6748,19.575,19.568,55.0]
[1693724229788,37.33,19.58,19.568,55.0]
[1693724230795,37.33,19.58,19.569,4.8300638]
[1693724231493,127.7263,19.58,19.569,4.8300638]
[1693724232393,127.7263,19.58,19.568,55.0]
[1693724237498,90.3963,19.58,19.569,4.8300638]
[1693724237792,90.3963,19.58,19.57,55.0]
[1693724262119,90.3963,19.58,19.571,4.8300638]
[1693724262418,90.3963,19.58,19.57,55.0]
[1693724292734,127.7263,19.58,19.57,55.0]
[1693724298141,7.967,19.579,19.553,4.8300638]
[1693724298440,7.967,19.579,19.561,24.8300638]
[1693724298441,6.646664,19.579,19.561,24.8300638]
[1693724299043,135.6933,19.58,19.561,24.8300638]
[1693724299344,55.0,19.579,19.561,24.8300638]
[1693724304549,62.967,19.579,19.561,24.8300638]
[1693724304938,62.967,19.579,19.562,55.0]
[1693724305138,62.967,19.579,19.563,24.8300638]
[1693724305449,62.967,19.579,19.564,55.0]
[1693724305649,62.967,19.579,19.565,4.8300638]
[1693724305835,55.0,19.579,19.565,4.8300638]
[1693724306149,55.0,19.579,19.564,55.0]
[1693724306446,55.0,19.579,19.565,4.8300638]
[1693724309335,55.0,19.579,19.564,4.8300638]
[1693724309533,55.0,19.579,19.562,4.8300638]
[1693724324759,55.0,19.579,19.563,55.0]
[1693724324959,55.0,19.579,19.564,4.8300638]
[1693724352078,127.7263,19.58,19.564,4.8300638]
[1693724352274,127.7263,19.58,19.566,4.8300638]
[1693724352471,127.7263,19.58,19.564,4.8300638]
[1693724352666,127.7263,19.58,19.566,4.8300638]
[1693724352866,127.7263,19.58,19.565,55.0]
[1693724352867,127.7263,19.58,19.564,4.8300638]
[1693724353074,127.7263,19.58,19.565,55.0]
[1693724353274,127.7263,19.58,19.566,4.8300638]
[1693724353677,127.7263,19.58,19.565,55.0]
[1693724354889,127.7263,19.58,19.566,4.8300638]
[1693724386212,127.7263,19.58,19.567,55.0]
[1693724387001,127.7263,19.58,19.568,4.8300638]
[1693724387297,127.7263,19.58,19.567,55.0]
[1693724390109,127.7263,19.58,19.568,4.8300638]
[1693724394514,127.7263,19.58,19.567,55.0]
[1693724394714,127.7263,19.58,19.568,4.8300638]
[1693724397404,127.7263,19.58,19.569,55.0]
[1693724401424,90.3963,19.58,19.569,55.0]
[1693724401602,90.3963,19.58,19.57,4.8300638]
[1693724401809,90.3963,19.58,19.571,55.0]
[1693724402118,90.3963,19.58,19.572,4.8300638]
[1693724402320,90.3963,19.58,19.571,55.0]
[1693724404410,90.3963,19.58,19.572,4.8300638]
[1693724404610,90.3963,19.58,19.573,55.0]
[1693724414229,90.3963,19.58,19.574,4.8300638]
[1693724414423,90.3963,19.58,19.573,55.0]
[1693724416718,90.3963,19.58,19.574,4.8300638]
[1693724417028,90.3963,19.58,19.573,4.8300638]
[1693724417230,37.33,19.59,19.575,4.8300638]
[1693724417424,37.33,19.59,19.576,55.0]
[1693724417630,37.33,19.59,19.573,4.8300638]
[1693724417832,37.33,19.59,19.574,55.0]
[1693724418132,37.33,19.59,19.575,4.8300638]
[1693724418313,37.33,19.59,19.577,4.8300638]
[1693724418521,37.33,19.59,19.579,4.8300638]
[1693724418721,37.33,19.59,19.575,4.8300638]
[1693724418922,37.33,19.59,19.577,4.8300638]
[1693724419114,37.33,19.59,19.579,4.8300638]
[1693724419517,37.33,19.59,19.58,55.0]
[1693724436749,37.33,19.59,19.579,55.0]
[1693724439247,37.33,19.59,19.574,4.8300638]
[1693724439950,55.0,19.589,19.574,4.8300638]
[1693724440247,55.0,19.589,19.571,24.8300638]
[1693724440450,97.1241,19.588,19.571,24.8300638]
[1693724441156,97.1241,19.588,19.573,4.8300638]
[1693724441343,97.1241,19.588,19.575,4.8300638]
[1693724442353,37.33,19.58,19.571,4.8300638]
[1693724442650,37.33,19.58,19.56,37.33]
[1693724442651,37.33,19.58,19.561,24.8300638]
[1693724444452,37.33,19.58,19.562,55.0]
[1693724444653,37.33,19.58,19.563,24.8300638]
[1693724444851,37.33,19.58,19.564,55.0]
[1693724445051,37.33,19.58,19.565,4.8300638]
[1693724445346,37.33,19.58,19.566,55.0]
[1693724445552,37.33,19.58,19.567,4.8300638]
[1693724445851,37.33,19.58,19.568,55.0]
[1693724446052,37.33,19.58,19.569,4.8300638]
[1693724446263,37.33,19.58,19.57,55.0]
[1693724446564,37.33,19.58,19.571,4.8300638]
[1693724446756,92.9445,19.579,19.564,4.8300638]
[1693724447053,92.9445,19.579,19.562,4.8300638]
[1693724447944,92.9445,19.579,19.563,55.0]
[1693724448253,92.9445,19.579,19.564,4.8300638]
[1693724448558,92.9445,19.579,19.566,4.8300638]
[1693724448763,92.9445,19.579,19.567,55.0]
[1693724448946,92.9445,19.579,19.568,4.8300638]
[1693724464059,92.9445,19.579,19.562,4.8300638]
[1693724464265,92.9445,19.579,19.563,55.0]
[1693724464465,92.9445,19.579,19.564,4.8300638]
[1693724464665,92.9445,19.579,19.565,55.0]
[1693724464866,92.9445,19.579,19.566,4.8300638]
[1693724465770,92.9445,19.579,19.567,55.0]
[1693724465954,92.9445,19.579,19.568,4.8300638]
[1693724477069,92.9445,19.579,19.569,55.0]
[1693724477265,92.9445,19.579,19.57,4.8300638]
[1693724477470,92.9445,19.579,19.571,55.0]
[1693724477672,92.9445,19.579,19.572,4.8300638]
[1693724477867,92.9445,19.579,19.571,55.0]
[1693724478068,92.9445,19.579,19.572,4.8300638]
[1693724479781,92.9445,19.579,19.571,55.0]
[1693724481080,92.9445,19.579,19.572,4.8300638]
[1693724481578,92.9445,19.579,19.571,55.0]
[1693724487370,92.9445,19.579,19.566,4.8300638]
[1693724487573,92.9445,19.579,19.567,55.0]
[1693724487773,92.9445,19.579,19.568,4.8300638]
[1693724487974,92.9445,19.579,19.569,55.0]
[1693724488163,92.9445,19.579,19.57,4.8300638]
[1693724492987,92.9445,19.579,19.569,55.0]
[1693724493179,92.9445,19.579,19.57,4.8300638]
[1693724493481,92.9445,19.579,19.569,55.0]
[1693724493679,92.9445,19.579,19.57,4.8300638]
[1693724493882,92.9445,19.579,19.561,20.0]
[1693724493883,92.9445,19.579,19.562,4.8300638]
[1693724494086,92.9445,19.579,19.563,55.0]
[1693724494389,92.9445,19.579,19.564,4.8300638]
[1693724494577,92.9445,19.579,19.566,4.8300638]
[1693724494980,92.9445,19.579,19.567,55.0]
[1693724495188,92.9445,19.579,19.568,4.8300638]
[1693724495986,92.9445,19.579,19.562,4.8300638]
[1693724496187,92.9445,19.579,19.563,55.0]
[1693724496493,92.9445,19.579,19.564,4.8300638]
[1693724496695,92.9445,19.579,19.565,55.0]
[1693724496875,92.9445,19.579,19.566,4.8300638]
[1693724540807,92.9445,19.579,19.562,4.8300638]
[1693724541010,92.9445,19.579,19.564,4.8300638]
[1693724548830,55.0,19.578,19.564,4.8300638]
[1693724556120,55.0,19.578,19.562,4.8300638]
[1693724557829,55.0,19.578,19.562,24.8300638]
[1693724558330,55.0,19.578,19.563,20.0]
[1693724558522,55.0,19.578,19.564,4.8300638]
[1693724558718,62.968,19.578,19.562,4.8300638]
[1693724564920,55.0,19.578,19.562,4.8300638]
[1693724572137,81.69424383,19.578,19.562,4.8300638]
[1693724582648,55.0,19.578,19.562,4.8300638]
[1693724596368,26.69472849,19.577,19.562,4.8300638]
[1693724596558,55.0,19.576,19.562,4.8300638]
[1693724596758,55.0,19.578,19.562,4.8300638]
[1693724599661,26.69291488,19.577,19.562,4.8300638]
[1693724599862,55.0,19.576,19.562,4.8300638]
[1693724616075,70.38170669,19.576,19.562,4.8300638]
[1693724631484,37.33,19.57,19.562,4.8300638]
[1693724631683,37.33,19.57,19.535,400.1]
[1693724631684,37.33,19.57,19.551,4.8300638]
[1693724631988,37.33,19.57,19.551,5.13673386]
[1693724632191,92.3035,19.569,19.551,5.13673386]
[1693724632779,92.3035,19.569,19.552,20.0]
[1693724632996,92.3035,19.569,19.553,59.8300638]
[1693724638397,55.0,19.568,19.553,59.8300638]
[1693724669413,55.0,19.567,19.553,59.8300638]
[1693724670002,55.0,19.568,19.553,59.8300638]
[1693724671711,55.0,19.568,19.553,4.8300638]
[1693724671911,55.0,19.568,19.551,24.8300638]
[1693724672113,55.0,19.568,19.551,25.13673386]
[1693724694931,92.3035,19.569,19.552,55.0]
[1693724695239,92.3035,19.569,19.553,4.8300638]
[1693724695435,92.3035,19.569,19.554,55.0]
[1693724695638,92.3035,19.569,19.555,4.8300638]
[1693724696538,55.0,19.568,19.555,4.8300638]
[1693724697633,92.3035,19.569,19.555,4.8300638]
[1693724697842,92.3035,19.569,19.556,55.0]
[1693724698027,92.3035,19.569,19.557,4.8300638]
[1693724698228,92.3035,19.569,19.558,55.0]
[1693724698428,92.3035,19.569,19.559,4.8300638]
[1693724699127,92.3035,19.569,19.552,4.8300638]
[1693724699328,92.3035,19.569,19.553,55.0]
[1693724699527,92.3035,19.569,19.554,4.8300638]
[1693724699737,92.3035,19.569,19.555,55.0]
[1693724699938,92.3035,19.569,19.556,4.8300638]
[1693724700148,92.3035,19.569,19.557,55.0]
[1693724700441,92.3035,19.569,19.558,4.8300638]
[1693724700634,92.3035,19.569,19.559,55.0]
[1693724700833,92.3035,19.569,19.56,4.8300638]
[1693724706531,92.3035,19.569,19.552,4.8300638]
[1693724706742,92.3035,19.569,19.552,5.13673386]
[1693724706942,92.3035,19.569,19.553,20.0]
[1693724707145,92.3035,19.569,19.554,4.8300638]
[1693724707842,92.3035,19.569,19.555,55.0]
[1693724708043,92.3035,19.569,19.556,4.8300638]
[1693724710847,55.0,19.568,19.552,4.8300638]
[1693724711049,55.0,19.568,19.552,5.13673386]
[1693724711249,55.0,19.568,19.553,20.0]
[1693724711547,55.0,19.568,19.554,4.8300638]
[1693724712143,55.0,19.568,19.552,4.8300638]
[1693724712343,55.0,19.568,19.553,55.0]
[1693724712631,55.0,19.568,19.554,4.8300638]
[1693724737254,92.3035,19.569,19.554,4.8300638]
[1693724737554,55.0,19.568,19.554,4.8300638]
[1693724738467,92.3035,19.569,19.555,55.0]
[1693724738669,92.3035,19.569,19.556,4.8300638]
[1693724754592,92.3035,19.569,19.557,55.0]
[1693724754893,92.3035,19.569,19.558,4.8300638]
[1693724755983,92.3035,19.569,19.559,55.0]
[1693724756391,16.19188078,19.574,19.559,55.0]
[1693724756589,110.8705,19.573,19.56,4.8300638]
[1693724756785,20.0,19.573,19.56,4.8300638]
[1693724757187,20.0,19.575,19.56,4.8300638]
[1693724757393,55.0,19.574,19.56,4.8300638]
[1693724757582,20.0,19.573,19.56,4.8300638]
[1693724758494,92.755,19.572,19.56,4.8300638]
[1693724758696,92.755,19.572,19.559,55.0]
[1693724759195,92.755,19.572,19.56,42.1600638]
[1693724759394,92.755,19.572,19.562,4.8300638]
[1693724763884,37.33,19.57,19.554,4.8300638]
[1693724764087,37.33,19.57,19.555,55.0]
[1693724764382,37.33,19.57,19.554,4.8300638]
[1693724764691,37.33,19.57,19.552,4.8300638]
[1693724764891,37.33,19.57,19.552,5.13673386]
[1693724765097,37.33,19.57,19.553,20.0]
[1693724765299,37.33,19.57,19.554,4.8300638]
[1693724765590,37.33,19.57,19.556,4.8300638]
[1693724765796,37.33,19.57,19.558,4.8300638]
[1693724766094,37.33,19.57,19.56,4.8300638]
[1693724766295,37.33,19.57,19.556,4.8300638]
[1693724766499,37.33,19.57,19.558,4.8300638]
[1693724766699,37.33,19.57,19.56,4.8300638]
[1693724766906,37.33,19.57,19.558,4.8300638]
[1693724767088,37.33,19.57,19.56,4.8300638]
[1693724767289,37.33,19.57,19.558,4.8300638]
[1693724767496,37.33,19.57,19.56,4.8300638]
[1693724775008,37.33,19.57,19.561,55.0]
[1693724775212,37.33,19.57,19.562,4.8300638]
[1693724785807,37.33,19.57,19.561,55.0]
[1693724786316,37.33,19.57,19.562,4.8300638]
[1693724789119,37.33,19.57,19.561,55.0]
[1693724789420,37.33,19.57,19.562,4.8300638]
[1693724793422,37.33,19.57,19.561,55.0]
[1693724793623,37.33,19.57,19.562,4.8300638]
[1693724793822,37.33,19.57,19.561,55.0]
[1693724795919,37.33,19.57,19.562,4.8300638]
[1693724796919,37.33,19.57,19.561,55.0]
[1693724803130,37.33,19.57,19.561,55.0]
[1693724811938,92.755,19.572,19.561,55.0]
[1693724812832,20.0,19.573,19.561,55.0]